fUSD/lending_fUSD_20250923
["ID","MTS","AMOUNT","RATE_DAILY","PERIOD"]
[387254709,1758664467915,-2115.52,0.00029589,3]
[387254710,1758664467924,-1160.52,0.00029589,3]
[387254711,1758664467934,-523.04,0.00029589,3]
[387254712,1758664467944,-1974.89,0.00029589,3]
[387254713,1758664467955,-590.58,0.00029589,3]
[387254714,1758664467965,-2168.16,0.00029589,3]
[387254715,1758664467975,-4427.59,0.00029589,3]
[387254716,1758664467984,-1946.73,0.00029589,3]
[387254717,1758664467994,-1479.38,0.00029589,3]
[387254718,1758664468003,-543.91,0.00029589,3]
[387254719,1758664468014,-1720.08,0.00029589,3]
[387254720,1758664468024,-570.83,0.00029589,3]
[387254721,1758664468034,-1290.76,0.00029589,3]
[387254722,1758664468043,-466.33,0.00029589,3]
[387254723,1758664468053,-727.07,0.00029589,3]
[387254724,1758664468062,-633.05,0.00029589,3]
[387254725,1758664468072,-413.88,0.00029589,3]
[387254726,1758664468082,-505.54,0.00029589,3]
[387254727,1758664468092,-3204.79,0.00029589,3]
[387254728,1758664468102,-654.93,0.00029589,3]
[387254729,1758664468114,-760.67,0.00029589,3]
[387254730,1758664468123,-1323.54,0.00029589,3]
[387254731,1758664468132,-1733.39,0.00029589,3]
[387254732,1758664468142,-2310.41,0.00029589,3]
[387254733,1758664468151,-562.75,0.00029589,3]
[387254734,1758664468160,-2523.28,0.00029589,3]
[387254735,1758664468169,-1966.27,0.00029589,3]
[387254736,1758664468179,-551.29,0.00029589,3]
[387254737,1758664468188,-1174.67,0.00029589,3]
[387254738,1758664468197,-421.49,0.00029589,3]
[387254739,1758664468206,-706.26,0.00029589,3]
[387254740,1758664468215,-2604.18,0.00029589,3]
[387254741,1758664468224,-3628.11,0.00029589,3]
[387254742,1758664468233,-1829.63,0.00029589,3]
[387254743,1758664468242,-565.31,0.00029589,3]
[387254744,1758664468251,-2276.88,0.00029589,3]
[387254745,1758664468260,-2516.63,0.00029589,3]
[387254746,1758664468269,-1595.55,0.00029589,3]
[387254747,1758664468278,-2647.87,0.00029589,3]
[387254748,1758664468287,-1399.27,0.00029589,3]
[387254749,1758664468297,-3130.39,0.00029589,3]
[387254750,1758664468306,-4362.99,0.00029589,3]
[387254751,1758664468316,-1323.37,0.00029589,3]
[387254752,1758664468326,-435.62,0.00029589,3]
[387254753,1758664468337,-410.88,0.00029589,3]
[387254754,1758664468346,-2164.69,0.00029589,3]
[387254755,1758664468355,-554.53,0.00029589,3]
[387254756,1758664468364,-2696.65,0.00029589,3]
[387254757,1758664468374,-400.0,0.00029589,3]
[387254758,1758664468383,-400.0,0.00029589,3]
[387254759,1758664468392,-1822.61,0.00029589,3]
[387254760,1758664468401,-2197.93,0.00029589,3]
[387254761,1758664468410,-7563.58,0.00029589,3]
[387254762,1758664468421,-2557.76,0.00029589,3]
[387254763,1758664468431,-547.88,0.00029589,3]
[387254764,1758664468440,-2080.13,0.00029589,3]
[387254765,1758664468450,-2360.32,0.00029589,3]
[387254766,1758664468459,-2254.46,0.00029589,3]
[387254767,1758664468469,-439.37,0.00029589,3]
[387254768,1758664468479,-413.35,0.00029589,3]
[387254769,1758664468488,-587.39,0.00029589,3]
[387254770,1758664468499,-3272.4,0.00029589,3]
[387254771,1758664468508,-2668.58,0.00029589,3]
[387254772,1758664468517,-1439.94,0.00029589,3]
[387254773,1758664468527,-400.0,0.00029589,3]
[387254774,1758664468536,-1694.56,0.00029589,3]
[387254775,1758664468546,-877.79,0.00029589,3]
[387254776,1758664468556,-400.0,0.00029589,3]
[387254777,1758664468565,-1910.92,0.00029589,3]
[387254778,1758664468574,-2031.07,0.00029589,3]
[387254779,1758664468584,-400.0,0.00029589,3]
[387254780,1758664468593,-784.22,0.00029589,3]
[387254781,1758664468603,-791.36,0.00029589,3]
[387254782,1758664468612,-559.88,0.00029589,3]
[387254783,1758664468622,-976.72,0.00029589,3]
[387254784,1758664468631,-626.61,0.00029589,3]
[387254785,1758664468640,-4896.65,0.00029589,3]
[387254786,1758664468650,-400.0,0.00029589,3]
[387254787,1758664468659,-1205.82,0.00029589,3]
[387254788,1758664468669,-1169.14,0.00029589,3]
[387254789,1758664468679,-1175.49,0.00029589,3]
[387254790,1758664468688,-2758.07,0.00029589,3]
[387254791,1758664468697,-2495.95,0.00029589,3]
[387254792,1758664468707,-1049.38,0.00029589,3]
[387254793,1758664468717,-685.44,0.00029589,3]
[387254794,1758664468726,-1595.32,0.00029589,3]
[387254795,1758664468735,-4079.21,0.00029589,3]
[387254796,1758664468745,-1207.96,0.00029589,3]
[387254797,1758664468755,-2510.3,0.00029589,3]
[387254798,1758664468764,-1678.52,0.00029589,3]
[387254799,1758664468773,-16706.02,0.00029589,3]
[387254800,1758664468782,-400.0,0.00029589,3]
[387254801,1758664468792,-1890.53,0.00029589,3]
[387254802,1758664468801,-689.28,0.00029589,3]
[387254803,1758664468811,-720.98,0.00029589,3]
[387254804,1758664468820,-400.0,0.00029589,3]
[387254805,1758664468829,-4251.49,0.00029589,3]
[387254806,1758664468839,-3330.98,0.00029589,3]
[387254807,1758664468848,-487.18,0.00029589,3]
[387254808,1758664468858,-425.07,0.00029589,3]
[387254809,1758664468867,-605.39,0.00029589,3]
[387254810,1758664468877,-2074.52,0.00029589,3]
[387254811,1758664468886,-630.04,0.00029589,3]
[387254812,1758664468896,-507.22,0.00029589,3]
[387254813,1758664468905,-1822.56,0.00029589,3]
[387254814,1758664468915,-1189.77,0.00029589,3]
[387254815,1758664468925,-908.29,0.00029589,3]
[387254816,1758664468934,-752.17,0.00029589,3]
[387254817,1758664468943,-425.15,0.00029589,3]
[387254818,1758664468952,-13418.14,0.00029589,3]
[387254819,1758664468962,-2046.35,0.00029589,3]
[387254820,1758664468971,-1233.0,0.00029668,2]
[387254821,1758664468980,-434.0,0.00029668,2]
[387254822,1758664468989,-431.83,0.0002973,3]
[387254823,1758664468999,-1219.72,0.0002973,3]
[387254824,1758664469008,-1508.52970088,0.000298,30]
[387254825,1758664469018,-780.0,0.000298,2]
[387254826,1758664469027,-947.43,0.00029821,3]
[387254827,1758664469036,-1183.57,0.0002983,2]
[387254828,1758664469046,-403.15,0.00029863,3]
[387254829,1758664469055,-1219.54,0.00029863,3]
[387254830,1758664469065,-422.15,0.00029863,3]
[387254831,1758664469075,-722.3,0.00029863,3]
[387254832,1758664469084,-425.13,0.00029863,3]
[387254833,1758664469094,-514.72552895,0.00029863,3]
[387254834,1758664469103,-463.61,0.00029863,3]
[387254835,1758664469113,-400.81,0.00029863,3]
[387254836,1758664469122,-606.67,0.00029863,3]
[387254837,1758664469131,-558.51,0.00029863,3]
[387254838,1758664469141,-517.79,0.00029863,3]
[387254839,1758664469150,-410.1,0.00029863,3]
[387254840,1758664469160,-513.24,0.00029863,3]
[387254841,1758664469170,-864.38,0.00029863,3]
[387254842,1758664469179,-400.0,0.00029863,3]
[387254843,1758664469189,-400.0,0.00029863,3]
[387254844,1758664469198,-404.0251,0.00029863,3]
[387254845,1758664469207,-404.02510867,0.00029863,3]
[387254846,1758664469217,-400.0,0.00029863,3]
[387254847,1758664469226,-499.32,0.00029863,3]
[387254848,1758664469236,-400.0,0.00029863,3]
[387254849,1758664469245,-400.0,0.00029863,3]
[387254850,1758664469255,-701.54,0.00029863,3]
[387254851,1758664469265,-595.8,0.00029863,3]
[387254852,1758664469274,-570.98,0.00029863,3]
[387254853,1758664469284,-761.54,0.00029863,3]
[387254854,1758664469293,-448.15,0.00029863,3]
[387254855,1758664469303,-574.63,0.00029863,3]
[387254856,1758664469312,-599.61,0.00029863,3]
[387254857,1758664469321,-400.0,0.00029863,3]
[387254858,1758664469330,-433.43,0.00029863,3]
[387254859,1758664469339,-1431.46,0.00029863,3]
[387254860,1758664469347,-409.36428195,0.00029863,3]
[387254861,1758664469355,-869.0,0.00029863,3]
[387254862,1758664469363,-500.78,0.00029863,3]
[387254863,1758664469372,-415.37,0.00029863,3]
[387254864,1758664469381,-400.0,0.00029863,3]
[387254865,1758664469390,-851.65,0.00029863,3]
[387254866,1758664469399,-514.2,0.00029863,3]
[387254867,1758664469409,-696.09,0.00029863,3]
[387254868,1758664469420,-942.3,0.00029863,3]
[387254869,1758664469431,-483.66,0.00029863,3]
[387254870,1758664469440,-700.73,0.00029863,3]
[387254871,1758664469450,-1323.65,0.00029863,3]
[387254872,1758664469460,-1213.35,0.00029863,3]
[387254873,1758664469471,-432.38,0.00029863,3]
[387254874,1758664469481,-400.0,0.00029863,3]
[387254875,1758664469492,-413.32,0.00029863,3]
[387254876,1758664469502,-600.39,0.00029863,3]
[387254877,1758664469512,-525.79,0.00029863,3]
[387254878,1758664469522,-585.89,0.00029863,3]
[387254879,1758664469531,-869.19,0.00029863,3]
[387254880,1758664469541,-655.46,0.00029863,3]
[387254881,1758664469551,-853.3,0.00029863,3]
[387254882,1758664469561,-400.0,0.00029863,3]
[387254883,1758664469571,-684.3,0.00029863,3]
[387254884,1758664469581,-433.77,0.00029863,3]
[387254885,1758664469591,-451.05,0.00029863,3]
[387254886,1758664469601,-1034.82,0.00029863,3]
[387254887,1758664469611,-414.11,0.00029863,3]
[387254888,1758664469620,-400.0,0.00029863,3]
[387254889,1758664469629,-568.34,0.00029863,3]
[387254890,1758664469639,-497.27,0.00029863,3]
[387254891,1758664469649,-400.0,0.00029863,3]
[387254892,1758664469659,-483.14,0.00029863,3]
[387254893,1758664469669,-400.0,0.00029863,3]
[387254894,1758664469679,-442.92,0.00029863,3]
[387254895,1758664469689,-963.02,0.00029863,3]
[387254896,1758664469699,-337.86,0.00029863,3]
[387254897,1758664469709,-417.0,0.00029863,3]
[387254898,1758664469719,-495.44,0.00029863,3]
[387254899,1758664469728,-1113.1,0.00029863,3]
[387254900,1758664469738,-564.87,0.00029863,3]
[387254901,1758664469748,-442.1,0.00029863,3]
[387254902,1758664469757,-612.62,0.00029863,3]
[387254903,1758664469768,-544.44,0.00029863,3]
[387254904,1758664469778,-553.48,0.00029863,3]
[387254905,1758664469787,-811.92,0.00029863,3]
[387254906,1758664469797,-866.52,0.00029863,3]
[387254907,1758664469807,-453.27581549,0.00029863,3]
[387254908,1758664469817,-1271.99,0.00029863,3]
[387254909,1758664469828,-555.94,0.00029863,3]
[387254910,1758664469838,-516.66,0.00029863,3]
[387254911,1758664469848,-443.34,0.00029863,3]
[387254912,1758664469859,-460.81,0.00029863,3]
[387254913,1758664470077,-502.53,0.00029863,3]
[387254914,1758664470086,-505.37,0.00029863,3]
[387254915,1758664470097,-542.19,0.00029863,3]
[387254916,1758664470107,-688.7,0.00029863,3]
[387254917,1758664470117,-1015.44,0.00029863,3]
[387254918,1758664470127,-1292.63,0.00029863,3]
[387254919,1758664470136,-1611.73,0.00029863,3]
[387254920,1758664470146,-637.7,0.00029863,3]
[387254921,1758664470155,-505.52981587,0.00029863,3]
[387254922,1758664470166,-660.83,0.00029863,3]
[387254923,1758664470175,-549.84,0.00029863,3]
[387254924,1758664470184,-1262.83,0.00029863,3]
[387254925,1758664470194,-400.0,0.00029863,3]
[387254926,1758664470203,-511.14,0.00029863,3]
[387254927,1758664470212,-1072.23,0.00029863,3]
[387254928,1758664470222,-435.66,0.00029863,3]
[387254929,1758664470232,-446.42,0.00029863,3]
[387254930,1758664470242,-956.24,0.00029863,3]
[387254931,1758664470252,-804.81,0.00029863,3]
[387254932,1758664470261,-493.33,0.00029863,3]
[387254933,1758664470271,-400.0,0.00029863,3]
[387254934,1758664470280,-425.12,0.00029863,3]
[387254935,1758664470289,-536.14,0.00029863,3]
[387254936,1758664470299,-1446.35,0.00029863,3]
[387254937,1758664470309,-647.53,0.00029863,3]
[387254938,1758664470319,-712.76,0.00029863,3]
[387254939,1758664470329,-400.0,0.00029863,3]
[387254940,1758664470646,-742.51,0.00029863,3]
[387254941,1758664470656,-609.25,0.00029863,3]
[387254942,1758664470666,-1004.12,0.00029863,3]
[387254943,1758664470676,-1267.73,0.00029863,3]
[387254944,1758664470687,-1089.2,0.00029863,3]
[387254945,1758664470696,-936.94,0.00029863,3]
[387254946,1758664470706,-400.0,0.00029863,3]
[387254947,1758664470716,-628.73,0.00029863,3]
[387254948,1758664470725,-792.8,0.00029863,3]
[387254949,1758664470735,-718.2,0.00029863,3]
[387254950,1758664470744,-771.65,0.00029863,3]
[387254951,1758664470755,-735.99,0.00029863,3]
[387254952,1758664470764,-724.09,0.00029863,3]
[387254953,1758664470774,-735.82,0.00029863,3]
[387254954,1758664470784,-724.51,0.00029863,3]
[387254955,1758664470794,-590.38,0.00029863,3]
[387254956,1758664470805,-704.47,0.00029863,3]
[387254957,1758664470814,-597.65,0.00029863,3]
[387254958,1758664470824,-644.02,0.00029863,3]
[387254959,1758664470833,-490.6,0.00029863,3]
[387254960,1758664470843,-544.45,0.00029863,3]
[387254961,1758664470853,-1124.92,0.00029863,3]
[387254962,1758664470862,-400.98,0.00029863,3]
[387254963,1758664470871,-1607.1,0.00029863,3]
[387254964,1758664470880,-643.25,0.00029863,3]
[387254965,1758664470890,-702.26,0.00029863,3]
[387254966,1758664470899,-623.69,0.00029863,3]
[387254967,1758664470909,-190.92093509,0.00029863,3]
[387254968,1758664470919,-1080.61,0.00029863,3]
[387254969,1758664470929,-422.24,0.00029863,3]
[387254970,1758664470941,-417.7,0.00029863,3]
[387254971,1758664470951,-909.48,0.00029863,3]
[387254972,1758664470962,-515.95,0.00029863,3]
[387254973,1758664470971,-419.15,0.00029863,3]
[387254974,1758664470982,-421.32,0.00029863,3]
[387254975,1758664470991,-1535.1,0.00029863,3]
[387254976,1758664471000,-610.62,0.00029863,3]
[387254977,1758664471010,-788.82,0.00029863,3]
[387254978,1758664471019,-501.25,0.00029863,3]
[387254979,1758664471030,-472.89408482,0.00029863,3]
[387254980,1758664471040,-400.0,0.00029863,3]
[387254981,1758664471049,-467.58,0.00029863,3]
[387254982,1758664471060,-614.35,0.00029863,3]
[387254983,1758664471070,-387.17,0.00029863,3]
[387254984,1758664471080,-686.69,0.00029863,3]
[387254985,1758664471089,-400.0,0.00029863,3]
[387254986,1758664471100,-1284.73,0.00029863,3]
[387254987,1758664471110,-642.36,0.00029863,3]
[387254988,1758664471120,-560.54,0.00029863,3]
[387254989,1758664471129,-1073.37,0.00029863,3]
[387254990,1758664471139,-753.1,0.00029863,3]
[387254991,1758664471149,-545.97,0.00029863,3]
[387254992,1758664471159,-400.0,0.00029863,3]
[387254993,1758664471169,-400.0,0.00029863,3]
[387254994,1758664471178,-580.05,0.00029863,3]
[387254995,1758664471188,-1196.06,0.00029863,3]
[387254996,1758664471198,-779.4,0.00029863,3]
[387254997,1758664471207,-1387.31,0.00029863,3]
[387254998,1758664471217,-526.44,0.00029863,3]
[387254999,1758664471226,-914.9,0.00029863,3]
[387255000,1758664471236,-751.05,0.00029863,3]
[387255001,1758664471245,-400.0,0.00029863,3]
[387255002,1758664471255,-585.69,0.00029863,3]
[387255003,1758664471266,-10481.21,0.00029863,3]
[387255004,1758664471276,-1075.59,0.00029863,3]
[387255005,1758664471286,-1243.9,0.00029863,3]
[387255006,1758664471295,-2675.56,0.00029863,3]
[387255007,1758664471305,-400.0,0.00029863,3]
[387255008,1758664471315,-603.56,0.00029863,3]
[387255009,1758664471324,-1687.56,0.00029863,3]
[387255010,1758664471334,-613.2,0.00029863,3]
[387255011,1758664471344,-1380.17,0.00029863,3]
[387255012,1758664471354,-1984.04,0.00029863,3]
[387255013,1758664471364,-637.31,0.00029863,3]
[387255014,1758664471374,-536.31,0.00029863,3]
[387255015,1758664471383,-1960.16,0.00029863,3]
[387255016,1758664471392,-653.4,0.00029863,3]
[387255017,1758664471402,-1811.83,0.00029863,3]
[387255018,1758664471411,-485.31,0.00029863,3]
[387255019,1758664471421,-609.4,0.00029863,3]
[387255020,1758664471433,-1777.36,0.00029863,3]
[387255021,1758664471442,-3596.07,0.00029863,3]
[387255022,1758664471452,-955.0,0.00029863,3]
[387255023,1758664471461,-1530.13,0.00029863,3]
[387255024,1758664471471,-400.0,0.00029863,3]
[387255025,1758664471481,-1065.12,0.00029863,3]
[387255026,1758664471491,-624.46,0.00029863,3]
[387255027,1758664471503,-668.62,0.00029863,3]
[387255028,1758664471516,-766.88,0.00029863,3]
[387255029,1758664471526,-488.82,0.00029863,3]
[387255030,1758664471536,-1866.98,0.00029863,3]
[387255031,1758664471546,-674.88,0.00029863,3]
[387255032,1758664471556,-507.6,0.00029863,3]
[387255033,1758664471565,-1430.39,0.00029863,3]
[387255034,1758664471575,-1005.24,0.00029863,3]
[387255035,1758664471585,-2251.93,0.00029863,3]
[387255036,1758664471594,-706.55,0.00029863,3]
[387255037,1758664471604,-471.06,0.00029863,3]
[387255038,1758664471614,-440.49,0.00029863,3]
[387255039,1758664471623,-1632.87,0.00029863,3]
[387255040,1758664471633,-2172.06,0.00029863,3]
[387255041,1758664471643,-1577.53,0.00029863,3]
[387255042,1758664471652,-573.43,0.00029863,3]
[387255043,1758664471662,-1762.21,0.00029863,3]
[387255044,1758664471672,-2598.87,0.00029863,3]
[387255045,1758664471681,-2106.48,0.00029863,3]
[387255046,1758664471691,-2137.16,0.00029863,3]
[387255047,1758664471700,-1633.99,0.00029863,3]
[387255048,1758664471710,-665.33,0.00029863,3]
[387255049,1758664471720,-400.0,0.00029863,3]
[387255050,1758664471730,-507.04,0.00029863,3]
[387255051,1758664471740,-652.14,0.00029863,3]
[387255052,1758664471749,-441.78,0.00029863,3]
[387255053,1758664471759,-2095.57,0.00029863,3]
[387255054,1758664471768,-2272.09,0.00029863,3]
[387255055,1758664471777,-2047.84,0.00029863,3]
[387255056,1758664471786,-425.92,0.00029863,3]
[387255057,1758664471796,-782.31,0.00029863,3]
[387255058,1758664471805,-1845.88,0.00029863,3]
[387255059,1758664471815,-1531.58,0.00029863,3]
[387255060,1758664471824,-1188.08,0.00029863,3]
[387255061,1758664471834,-1490.46,0.00029863,3]
[387255062,1758664471843,-2033.65,0.00029863,3]
[387255063,1758664471853,-2177.65,0.00029863,3]
[387255064,1758664471862,-2728.22,0.00029863,3]
[387255065,1758664471872,-680.61,0.00029863,3]
[387255066,1758664471881,-1405.11,0.00029863,3]
[387255067,1758664471891,-1113.08,0.00029863,3]
[387255068,1758664471900,-1415.66,0.00029863,3]
[387255069,1758664471910,-1698.64,0.00029863,3]
[387255070,1758664471920,-1312.62,0.00029863,3]
[387255071,1758664471929,-769.12,0.00029863,3]
[387255072,1758664471939,-1079.65,0.00029863,3]
[387255073,1758664471949,-916.94,0.00029863,3]
[387255074,1758664471958,-2186.72,0.00029863,3]
[387255075,1758664471967,-546.81,0.00029863,3]
[387255076,1758664471977,-952.65,0.00029863,3]
[387255077,1758664471987,-485.45,0.00029863,3]
[387255078,1758664471997,-643.52,0.00029863,3]
[387255079,1758664472006,-1538.99,0.00029863,3]
[387255080,1758664472016,-400.0,0.00029863,3]
[387255081,1758664472026,-767.66,0.00029863,3]
[387255082,1758664472035,-1510.65,0.00029863,3]
[387255083,1758664472045,-1183.46,0.00029863,3]
[387255084,1758664472055,-1025.71,0.00029863,3]
[387255085,1758664472065,-1292.75,0.00029863,3]
[387255086,1758664472074,-589.78,0.00029863,3]
[387255087,1758664472085,-1576.62,0.00029863,3]
[387255088,1758664472096,-2168.52,0.00029863,3]
[387255089,1758664472107,-1248.87,0.00029863,3]
[387255090,1758664472119,-1438.1,0.00029863,3]
[387255091,1758664472128,-801.34,0.00029863,3]
[387255092,1758664472138,-408.05,0.00029863,3]
[387255093,1758664472147,-152.95154832,0.00029863,3]
[387255094,1758664472157,-1989.17,0.00029863,3]
[387255095,1758664472167,-1355.06,0.00029863,3]
[387255096,1758664472176,-1742.92,0.00029863,3]
[387255097,1758664472185,-1035.45,0.00029863,3]
[387255098,1758664472195,-466.56,0.00029863,3]
[387255099,1758664472206,-1515.98,0.00029863,3]
[387255100,1758664472215,-1785.83,0.00029863,3]
[387255101,1758664472224,-835.56,0.00029863,3]
[387255102,1758664472234,-1984.29,0.00029863,3]
[387255103,1758664472243,-1716.89,0.00029863,3]
[387255104,1758664472253,-635.55,0.00029863,3]
[387255105,1758664472262,-786.93,0.00029863,3]
[387255106,1758664472272,-645.64,0.00029863,3]
[387255107,1758664472281,-400.0,0.00029863,3]
[387255108,1758664472291,-2059.55,0.00029863,3]
[387255109,1758664472300,-2306.45,0.00029863,3]
[387255110,1758664472310,-1514.01,0.00029863,3]
[387255111,1758664472320,-400.0,0.00029863,3]
[387255112,1758664472329,-1545.45,0.00029863,3]
[387255113,1758664472339,-2095.63,0.00029863,3]
[387255114,1758664472354,-1430.02,0.00029863,3]
[387255115,1758664472364,-909.31,0.00029863,3]
[387255116,1758664472375,-1827.73,0.00029863,3]
[387255117,1758664472385,-690.64,0.00029863,3]
[387255118,1758664472396,-2101.8,0.00029863,3]
[387255119,1758664472407,-966.9,0.00029863,3]
[387255120,1758664472417,-655.71,0.00029863,3]
[387255121,1758664472431,-1470.41,0.00029863,3]
[387255122,1758664472441,-603.72,0.00029863,3]
[387255123,1758664472451,-5585.99,0.00029863,3]
[387255124,1758664472463,-1883.8,0.00029863,3]
[387255125,1758664472475,-1867.36,0.00029863,3]
[387255126,1758664472486,-1963.55,0.00029863,3]
[387255127,1758664472496,-614.58,0.00029863,3]
[387255128,1758664472506,-952.78,0.00029863,3]
[387255129,1758664472517,-222.02810553,0.00029863,3]
[387255130,1758664472529,-1560.6,0.00029863,3]
[387255131,1758664472541,-1953.23,0.00029863,3]
[387255132,1758664472551,-1674.22,0.00029863,3]
[387255133,1758664472562,-492.65,0.00029863,3]
[387255134,1758664472572,-924.37,0.00029863,3]
[387255135,1758664472582,-1508.32,0.00029863,3]
[387255136,1758664472594,-1865.08,0.00029863,3]
[387255137,1758664472604,-1262.69,0.00029863,3]
[387255138,1758664472614,-1502.94,0.00029863,3]
[387255139,1758664472624,-1473.52,0.00029863,3]
[387255140,1758664472635,-1344.24,0.00029863,3]
[387255141,1758664472644,-957.08,0.00029863,3]
[387255142,1758664472654,-528.66,0.00029863,3]
[387255143,1758664472665,-552.31,0.00029863,3]
[387255144,1758664472675,-2161.43,0.00029863,3]
[387255145,1758664472685,-2128.27,0.00029863,3]
[387255146,1758664472696,-943.67,0.00029863,3]
[387255147,1758664472707,-698.14,0.00029863,3]
[387255148,1758664472717,-956.83,0.00029863,3]
[387255149,1758664472728,-1587.02,0.00029863,3]
[387255150,1758664472738,-428.71,0.00029863,3]
[387255151,1758664472749,-1021.78,0.00029863,3]
[387255152,1758664472760,-1854.69,0.00029863,3]
[387255153,1758664472771,-533.26,0.00029863,3]
[387255154,1758664472783,-7304.35,0.00029863,3]
[387255155,1758664472793,-675.91,0.00029863,3]
[387255156,1758664472804,-1334.3,0.00029863,3]
[387255157,1758664472814,-447.62,0.00029863,3]
[387255158,1758664472824,-803.81,0.00029863,3]
[387255159,1758664472835,-289.052262,0.00029863,3]
[387255160,1758664472845,-2319.15,0.00029863,3]
[387255161,1758664472855,-400.0,0.00029863,3]
[387255162,1758664472867,-1143.73,0.00029863,3]
[387255163,1758664472877,-1693.96,0.00029863,3]
[387255164,1758664472887,-808.53,0.00029863,3]
[387255165,1758664472898,-1798.02,0.00029863,3]
[387255166,1758664472908,-400.0,0.00029863,3]
[387255167,1758664472917,-1265.14,0.00029863,3]
[387255168,1758664472927,-493.9,0.00029863,3]
[387255169,1758664472936,-528.22,0.00029863,3]
[387255170,1758664472946,-1501.23,0.00029863,3]
[387255171,1758664472955,-387.02,0.00029863,3]
[387255172,1758664472965,-480.24,0.00029863,3]
[387255173,1758664472975,-400.0,0.00029863,3]
[387255174,1758664472985,-1303.69,0.00029863,3]
[387255175,1758664472995,-400.0,0.00029863,3]
[387255176,1758664473004,-1157.48,0.00029863,3]
[387255177,1758664473014,-810.26,0.00029863,3]
[387255178,1758664473024,-676.36,0.00029863,3]
[387255179,1758664473034,-923.87,0.00029863,3]
[387255180,1758664473044,-865.69,0.00029863,3]
[387255181,1758664473054,-1229.06,0.00029863,3]
[387255182,1758664473064,-645.83,0.00029863,3]
[387255183,1758664473074,-1798.6,0.00029863,3]
[387255184,1758664473084,-549.42,0.00029863,3]
[387255185,1758664473093,-404.28,0.00029863,3]
[387255186,1758664473103,-1589.65,0.00029863,3]
[387255187,1758664473114,-559.17,0.00029863,3]
[387255188,1758664473123,-1587.3,0.00029863,3]
[387255189,1758664473133,-1163.2,0.00029863,3]
[387255190,1758664473143,-536.97,0.00029863,3]
[387255191,1758664473152,-400.0,0.00029863,2]
[387255192,1758664473162,-2080.14,0.00029863,3]
[387255193,1758664473172,-529.51,0.00029863,3]
[387255194,1758664473382,-931.36,0.00029863,3]
[387255195,1758664473392,-1619.96,0.00029863,3]
[387255196,1758664473402,-453.19,0.00029863,3]
[387255197,1758664473412,-948.64,0.00029863,3]
[387255198,1758664473424,-400.0,0.00029863,3]
[387255199,1758664473434,-1551.51,0.00029863,3]
[387255200,1758664473443,-13739.2,0.00029863,3]
[387255201,1758664473452,-1871.37,0.00029863,3]
[387255202,1758664473463,-618.32,0.00029863,3]
[387255203,1758664473475,-458.91,0.00029863,3]
[387255204,1758664473484,-657.58,0.00029863,3]
[387255205,1758664473494,-400.0,0.00029863,3]
[387255206,1758664473506,-1506.02,0.00029863,3]
[387255207,1758664473517,-1848.91,0.00029863,3]
[387255208,1758664473526,-514.97,0.00029863,3]